fUST/lending_fUST_20260530
["ID","MTS","AMOUNT","RATE_DAILY","PERIOD"]
[423395615,1780083041000,-1110.6,0.00013833,2]
[423395613,1780083041000,-524.47,0.00013833,2]
[423395611,1780083041000,-500.0,0.00013833,2]
[423395607,1780083041000,-500.0,0.00013833,2]
[423395610,1780083041000,-556.45,0.00013833,2]
[423395612,1780083041000,-536.45,0.00013833,2]
[423395608,1780083041000,-500.0,0.00013833,2]
[423395618,1780083041000,-5562.8610715,0.00013833,2]
[423395601,1780083041000,-787.1,0.00013564,2]
[423395649,1780083041000,-500.0,0.00013835,2]
[423395602,1780083041000,-176.8116214,0.00013699,2]
[423395609,1780083041000,-700.46,0.00013833,2]
[423395688,1780083042000,-11228.46,0.00014107,2]
[423395694,1780083042000,-275.05266623,0.00014108,2]
[423395691,1780083042000,-500.0,0.00014108,2]
[423395689,1780083042000,-500.0,0.00014107,2]
[423395696,1780083042000,-500.0,0.00014108,2]
[423395680,1780083042000,-700.46,0.00014107,2]
[423395687,1780083042000,-500.0,0.00014107,2]
[423395690,1780083042000,-500.0,0.00014108,2]
[423395685,1780083042000,-500.0,0.00014107,2]
[423395686,1780083042000,-1110.6,0.00014107,2]
[423395677,1780083042000,-267.61236595,0.000141,2]
[423395697,1780083042000,-80.13231628,0.00014108,2]
[423395695,1780083042000,-622.18,0.00014108,2]
[423395707,1780083042000,-500.0,0.00014108,2]
[423395693,1780083042000,-89.18568235,0.00014108,2]
[423395698,1780083042000,-419.86768372,0.00014108,2]
[423395699,1780083042000,-500.0,0.00014108,2]
[423395709,1780083042000,-1626.21,0.00014108,2]
[423395704,1780083042000,-500.0,0.00014108,2]
[423395701,1780083042000,-150.97892951,0.00014108,2]
[423395702,1780083042000,-500.0,0.00014108,2]
[423395708,1780083042000,-500.0,0.00014108,2]
[423395706,1780083042000,-1128.87,0.00014108,2]
[423395703,1780083042000,-500.0,0.00014108,2]
[423395705,1780083042000,-500.0,0.00014108,2]
[423395700,1780083042000,-349.02107049,0.00014108,2]
[423395678,1780083042000,-247.82,0.00014107,2]
[423395692,1780083042000,-410.81431765,0.00014108,2]
[423395682,1780083042000,-500.0,0.00014107,2]
[423395662,1780083042000,-500.0,0.00013838,2]
[423395679,1780083042000,-500.0,0.00014107,2]
[423395710,1780083042000,-614.07,0.00014108,2]
[423395655,1780083042000,-500.0,0.00013835,2]
[423395656,1780083042000,-500.0,0.00013835,2]
[423395652,1780083042000,-176.72,0.00013835,2]
[423395651,1780083042000,-397.48,0.00013835,2]
[423395657,1780083042000,-445.84,0.00013835,2]
[423395650,1780083042000,-500.0,0.00013835,2]
[423395653,1780083042000,-500.0,0.00013835,2]
[423395659,1780083042000,-500.0,0.00013835,2]
[423395670,1780083042000,-950.2,0.00013838,2]
[423395669,1780083042000,-500.0,0.00013838,2]
[423395663,1780083042000,-813.47,0.00013838,2]
[423395671,1780083042000,-787.1,0.00013838,2]
[423395683,1780083042000,-536.45,0.00014107,2]
[423395660,1780083042000,-500.0,0.00013835,2]
[423395664,1780083042000,-500.0,0.00013838,2]
[423395666,1780083042000,-500.0,0.00013838,2]
[423395661,1780083042000,-500.0,0.00013835,2]
[423395665,1780083042000,-500.0,0.00013838,2]
[423395667,1780083042000,-523.94,0.00013838,2]
[423395668,1780083042000,-500.0,0.00013838,2]
[423395672,1780083042000,-312.0,0.00013847,2]
[423395674,1780083042000,-151.0,0.0001397,2]
[423395673,1780083042000,-267.61236595,0.000139,2]
[423395684,1780083042000,-524.47,0.00014107,2]
[423395681,1780083042000,-556.45,0.00014107,2]
[423395675,1780083042000,-500.0,0.0001397,2]
[423395676,1780083042000,-178.87210563,0.0001397,2]
[423395658,1780083042000,-500.0,0.00013835,2]
[423395711,1780083042000,-500.0,0.00014108,2]
[423395654,1780083042000,-500.0,0.00013835,2]
[423395714,1780083042000,-527.07,0.00014108,2]
[423395747,1780083042000,-319.84681087,0.00014304,2]
[423395749,1780083042000,-500.0,0.00014381,2]
[423395746,1780083042000,-267.61236595,0.000143,2]
[423395751,1780083042000,-556.45,0.00014381,2]
[423395756,1780083042000,-1110.6,0.00014381,2]
[423395748,1780083042000,-411.120357,0.00014307,2]
[423395757,1780083042000,-189.46,0.00014381,2]
[423395752,1780083042000,-195.3,0.00014381,2]
[423395750,1780083042000,-700.46,0.00014381,2]
[423395754,1780083042000,-524.47,0.00014381,2]
[423395753,1780083042000,-536.45,0.00014381,2]
[423395755,1780083042000,-500.0,0.00014381,2]
[423395759,1780083042000,-500.0,0.00014381,2]
[423395745,1780083042000,-500.0,0.00014215,2]
[423395769,1780083042000,-500.0,0.00014382,2]
[423395758,1780083042000,-11228.46,0.00014381,2]
[423395760,1780083042000,-500.0,0.00014382,2]
[423395767,1780083042000,-500.0,0.00014382,2]
[423395763,1780083042000,-622.18,0.00014382,2]
[423395762,1780083042000,-500.0,0.00014382,2]
[423395768,1780083042000,-500.0,0.00014382,2]
[423395761,1780083042000,-500.0,0.00014382,2]
[423395764,1780083042000,-574.45,0.00014382,2]
[423395766,1780083042000,-512.43,0.00014382,2]
[423395765,1780083042000,-500.0,0.00014382,2]
[423395778,1780083042000,-500.0,0.00014382,2]
[423395772,1780083042000,-500.0,0.00014382,2]
[423395776,1780083042000,-500.0,0.00014382,2]
[423395770,1780083042000,-500.0,0.00014382,2]
[423395742,1780083042000,-950.2,0.00014112,2]
[423395774,1780083042000,-1128.87,0.00014382,2]
[423395738,1780083042000,-500.0,0.00014112,2]
[423395733,1780083042000,-151.0,0.00014109,2]
[423395716,1780083042000,-500.0,0.00014109,2]
[423395712,1780083042000,-500.0,0.00014108,2]
[423395717,1780083042000,-500.0,0.00014109,2]
[423395715,1780083042000,-500.0,0.00014108,2]
[423395720,1780083042000,-273.17,0.00014109,2]
[423395719,1780083042000,-500.0,0.00014109,2]
[423395718,1780083042000,-651.69,0.00014109,2]
[423395721,1780083042000,-630.87,0.00014109,2]
[423395724,1780083042000,-500.0,0.00014109,2]
[423395728,1780083042000,-500.0,0.00014109,2]
[423395725,1780083042000,-517.52,0.00014109,2]
[423395726,1780083042000,-500.0,0.00014109,2]
[423395732,1780083042000,-151.0,0.00014109,2]
[423395713,1780083042000,-549.73,0.00014108,2]
[423395729,1780083042000,-500.0,0.00014109,2]
[423395722,1780083042000,-500.0,0.00014109,2]
[423395741,1780083042000,-500.0,0.00014112,2]
[423395739,1780083042000,-523.94,0.00014112,2]
[423395735,1780083042000,-813.47,0.00014112,2]
[423395737,1780083042000,-500.0,0.00014112,2]
[423395743,1780083042000,-787.1,0.00014112,2]
[423395736,1780083042000,-500.0,0.00014112,2]
[423395734,1780083042000,-500.0,0.00014112,2]
[423395740,1780083042000,-500.0,0.00014112,2]
[423395723,1780083042000,-500.0,0.00014109,2]
[423395730,1780083042000,-500.0,0.00014109,2]
[423395731,1780083042000,-500.0,0.00014109,2]
[423395744,1780083042000,-267.61236595,0.000142,2]
[423395727,1780083042000,-500.0,0.00014109,2]
[423395813,1780083043000,-171.39,0.00014386,2]
[423395816,1780083043000,-500.0,0.00014386,2]
[423395819,1780083043000,-57.12562008,0.00014405,2]
[423395831,1780083043000,-942.87437992,0.00014405,2]
[423395818,1780083043000,-787.1,0.00014386,2]
[423395844,1780083043000,-151.0,0.00014642,2]
[423395832,1780083043000,-244.0,0.00014405,2]
[423395834,1780083043000,-438.353,0.00014484,2]
[423395836,1780083043000,-500.0,0.00014518,2]
[423395846,1780083043000,-500.0,0.00014655,2]
[423395849,1780083043000,-700.46,0.00014655,2]
[423395841,1780083043000,-151.0,0.00014642,2]
[423395855,1780083043000,-500.0,0.00014655,2]
[423395851,1780083043000,-556.45,0.00014655,2]
[423395840,1780083043000,-209.56441595,0.00014552,2]
[423395838,1780083043000,-150.308,0.0001452,2]
[423395853,1780083043000,-524.47,0.00014655,2]
[423395811,1780083043000,-500.0,0.00014386,2]
[423395856,1780083043000,-1110.6,0.00014655,2]
[423395858,1780083043000,-500.0,0.00014655,2]
[423395859,1780083043000,-504.67,0.00014656,2]
[423395863,1780083043000,-500.0,0.00014656,2]
[423395864,1780083043000,-500.0,0.00014656,2]
[423395857,1780083043000,-11228.46,0.00014655,2]
[423395861,1780083043000,-500.0,0.00014656,2]
[423395860,1780083043000,-500.0,0.00014656,2]
[423395852,1780083043000,-536.45,0.00014655,2]
[423395815,1780083043000,-500.0,0.00014386,2]
[423395817,1780083043000,-950.2,0.00014386,2]
[423395806,1780083043000,-159.27,0.00014383,2]
[423395862,1780083043000,-622.18,0.00014656,2]
[423395784,1780083043000,-549.73,0.00014382,2]
[423395782,1780083043000,-500.0,0.00014382,2]
[423395780,1780083043000,-1626.21,0.00014382,2]
[423395781,1780083043000,-614.07,0.00014382,2]
[423395790,1780083043000,-500.0,0.00014383,2]
[423395788,1780083043000,-500.0,0.00014383,2]
[423395785,1780083043000,-527.07,0.00014382,2]
[423395783,1780083043000,-500.0,0.00014382,2]
[423395786,1780083043000,-500.0,0.00014382,2]
[423395792,1780083043000,-651.69,0.00014383,2]
[423395796,1780083043000,-630.87,0.00014383,2]
[423395809,1780083043000,-500.0,0.00014386,2]
[423395797,1780083043000,-500.0,0.00014383,2]
[423395801,1780083043000,-500.0,0.00014383,2]
[423395799,1780083043000,-200.72636,0.00014383,2]
[423395803,1780083043000,-496.75,0.00014383,2]
[423395804,1780083043000,-500.0,0.00014383,2]
[423395798,1780083043000,-500.0,0.00014383,2]
[423395800,1780083043000,-500.0,0.00014383,2]
[423395805,1780083043000,-500.0,0.00014383,2]
[423395807,1780083043000,-151.0,0.00014385,2]
[423395814,1780083043000,-523.94,0.00014386,2]
[423395808,1780083043000,-151.0,0.00014385,2]
[423395810,1780083043000,-813.47,0.00014386,2]
[423395812,1780083043000,-500.0,0.00014386,2]
[423395794,1780083043000,-500.0,0.00014383,2]
[423395802,1780083043000,-500.0,0.00014383,2]
[423395867,1780083043000,-500.0,0.00014656,2]
[423395866,1780083043000,-500.0,0.00014656,2]
[423395908,1780083043000,-167.0,0.00014919,2]
[423395900,1780083043000,-715.17684837,0.000147,2]
[423395899,1780083043000,-787.1,0.0001466,2]
[423395904,1780083043000,-4079.44629459,0.000149,2]
[423395910,1780083043000,-650.0,0.00014919,2]
[423395901,1780083043000,-171.25477602,0.00014759,2]
[423395906,1780083043000,-167.0,0.00014919,2]
[423395911,1780083043000,-167.0,0.00014919,2]
[423395903,1780083043000,-411.120357,0.00014863,2]
[423395905,1780083043000,-794.0,0.000149,2]
[423395902,1780083043000,-178.21200678,0.00014787,2]
[423395912,1780083043000,-500.0,0.00014929,2]
[423395897,1780083043000,-950.2,0.0001466,2]
[423395924,1780083043000,-500.0,0.0001493,2]
[423395914,1780083043000,-556.45,0.00014929,2]
[423395925,1780083043000,-500.0,0.0001493,2]
[423395918,1780083043000,-500.0,0.00014929,2]
[423395920,1780083043000,-11228.46,0.00014929,2]
[423395921,1780083043000,-500.0,0.00014929,2]
[423395916,1780083043000,-536.45,0.00014929,2]
[423395919,1780083043000,-1110.6,0.00014929,2]
[423395917,1780083043000,-524.47,0.00014929,2]
[423395922,1780083043000,-151.0,0.00014929,2]
[423395927,1780083043000,-500.0,0.0001493,2]
[423395926,1780083043000,-622.18,0.0001493,2]
[423395865,1780083043000,-500.0,0.00014656,2]
[423395913,1780083043000,-700.46,0.00014929,2]
[423395895,1780083043000,-500.0,0.0001466,2]
[423395923,1780083043000,-151.0,0.00014929,2]
[423395893,1780083043000,-500.0,0.0001466,2]
[423395869,1780083043000,-500.0,0.00014656,2]
[423395891,1780083043000,-813.47,0.0001466,2]
[423395868,1780083043000,-1128.87,0.00014656,2]
[423395871,1780083043000,-1626.21,0.00014656,2]
[423395882,1780083043000,-630.87,0.00014657,2]
[423395872,1780083043000,-614.07,0.00014656,2]
[423395881,1780083043000,-500.0,0.00014657,2]
[423395880,1780083043000,-651.69,0.00014657,2]
[423395879,1780083043000,-500.0,0.00014657,2]
[423395874,1780083043000,-500.0,0.00014656,2]
[423395877,1780083043000,-500.0,0.00014656,2]
[423395878,1780083043000,-500.0,0.00014657,2]
[423395875,1780083043000,-549.73,0.00014656,2]
[423395870,1780083043000,-347.34,0.00014656,2]
[423395894,1780083043000,-523.94,0.0001466,2]
[423395889,1780083043000,-500.0,0.00014657,2]
[423395876,1780083043000,-527.07,0.00014656,2]
[423395892,1780083043000,-500.0,0.0001466,2]
[423395890,1780083043000,-500.0,0.0001466,2]
[423395888,1780083043000,-500.0,0.00014657,2]
[423395883,1780083043000,-608.29,0.00014657,2]
[423395896,1780083043000,-500.0,0.0001466,2]
[423395886,1780083043000,-500.0,0.00014657,2]
[423395884,1780083043000,-500.0,0.00014657,2]
[423395887,1780083043000,-500.0,0.00014657,2]
[423395873,1780083043000,-500.0,0.00014656,2]
[423395885,1780083043000,-500.0,0.00014657,2]
[423395975,1780083044000,-151.0,0.00015,2]
[423395973,1780083044000,-500.0,0.00015,2]
[423395974,1780083044000,-167.2525266,0.00015,2]
[423395969,1780083044000,-151.0,0.00014967,2]
[423395971,1780083044000,-164.35015595,0.00014968,2]
[423395970,1780083044000,-151.0,0.00014967,2]
[423395959,1780083044000,-500.0,0.00014933,2]
[423395967,1780083044000,-39661.297944,0.00014967,2]
[423395961,1780083044000,-787.1,0.00014933,2]
[423395956,1780083044000,-500.0,0.00014933,2]
[423395955,1780083044000,-500.0,0.00014933,2]
[423395976,1780083044000,-151.0,0.00015,2]
[423395972,1780083044000,-2447634.80502111,0.00015,2]
[423395978,1780083044000,-82783.11321871,0.00015,2]
[423395989,1780083044000,-2251.70138486,0.00015033,28]
[423395981,1780083044000,-151.0,0.00015,2]
[423395979,1780083044000,-797.78635601,0.00015,2]
[423395980,1780083044000,-200.0,0.00015,2]
[423395968,1780083044000,-151.0,0.00014967,2]
[423395983,1780083044000,-151.0,0.00015,2]
[423395993,1780083044000,-159.59617619,0.00015095,2]
[423395982,1780083044000,-295.8730775,0.00015,2]
[423395984,1780083044000,-151.0,0.00015,2]
[423395985,1780083044000,-164.39018753,0.0001502,2]
[423395987,1780083044000,-207.40917178,0.0001503,2]
[423395986,1780083044000,-419.12883189,0.0001502,2]
[423395991,1780083044000,-500.0,0.00015066,2]
[423395958,1780083044000,-572.7654832,0.00014933,2]
[423395977,1780083044000,-151.0,0.00015,2]
[423395960,1780083044000,-950.2,0.00014933,2]
[423395938,1780083044000,-549.73,0.0001493,2]
[423395957,1780083044000,-523.94,0.00014933,2]
[423395937,1780083044000,-500.0,0.0001493,2]
[423395928,1780083044000,-500.0,0.0001493,2]
[423395929,1780083044000,-274.94,0.0001493,2]
[423395930,1780083044000,-500.0,0.0001493,2]
[423395935,1780083044000,-614.07,0.0001493,2]
[423395934,1780083044000,-1626.21,0.0001493,2]
[423395931,1780083044000,-500.0,0.0001493,2]
[423395936,1780083044000,-500.0,0.0001493,2]
[423395933,1780083044000,-500.0,0.0001493,2]
[423395932,1780083044000,-1128.87,0.0001493,2]
[423395940,1780083044000,-500.0,0.0001493,2]
[423395950,1780083044000,-500.0,0.00014931,2]
[423395943,1780083044000,-651.69,0.00014931,2]
[423395992,1780083044000,-342.50955204,0.00015067,2]
[423395942,1780083044000,-441.61,0.00014931,2]
[423395949,1780083044000,-500.0,0.00014931,2]
[423395944,1780083044000,-500.0,0.00014931,2]
[423395951,1780083044000,-456.54640961,0.00014933,2]
[423395945,1780083044000,-630.87,0.00014931,2]
[423395939,1780083044000,-527.07,0.0001493,2]
[423395946,1780083044000,-500.0,0.00014931,2]
[423395948,1780083044000,-500.0,0.00014931,2]
[423395941,1780083044000,-500.0,0.00014931,2]
[423395963,1780083044000,-167.0,0.00014962,2]
[423395953,1780083044000,-500.0,0.00014933,2]
[423395952,1780083044000,-420.96298206,0.00014933,2]
[423395966,1780083044000,-785.172453,0.00014967,2]
[423395965,1780083044000,-167.0,0.00014962,2]
[423395947,1780083044000,-500.0,0.00014931,2]
[423395990,1780083044000,-1540.23387611,0.00015033,28]
[423395954,1780083044000,-813.47,0.00014933,2]
[423395995,1780083044000,-151.0,0.00015121,2]
[423396029,1780083044000,-500.0,0.00015205,2]
[423396030,1780083044000,-500.0,0.00015205,2]
[423396039,1780083044000,-787.1,0.00015207,2]
[423396028,1780083044000,-500.0,0.00015205,2]
[423396040,1780083044000,-356.42401357,0.00015332,2]
[423396031,1780083044000,-500.0,0.00015205,2]
[423396032,1780083044000,-500.0,0.00015207,2]
[423396033,1780083044000,-813.47,0.00015207,2]
[423396038,1780083044000,-950.2,0.00015207,2]
[423396035,1780083044000,-500.0,0.00015207,2]
[423396034,1780083044000,-500.0,0.00015207,2]
[423396036,1780083044000,-523.94,0.00015207,2]
[423396042,1780083044000,-628.69324784,0.00015332,2]
[423396024,1780083044000,-651.69,0.00015205,2]
[423396044,1780083044000,-411.120357,0.00015418,2]
[423396045,1780083044000,-2251.70138486,0.00015443,36]
[423396054,1780083044000,-500.0,0.00015477,2]
[423396046,1780083044000,-500.0,0.00015477,2]
[423396041,1780083044000,-328.78037507,0.00015332,2]
[423396043,1780083044000,-757.7333677,0.00015403,2]
[423396052,1780083044000,-1110.6,0.00015477,2]
[423396051,1780083044000,-500.0,0.00015477,2]
[423396047,1780083044000,-700.46,0.00015477,2]
[423396049,1780083044000,-536.45,0.00015477,2]
[423396050,1780083044000,-524.47,0.00015477,2]
[423396048,1780083044000,-556.45,0.00015477,2]
[423396055,1780083044000,-500.0,0.00015478,2]
[423395988,1780083044000,-245.57860721,0.0001503,2]
[423396053,1780083044000,-11228.46,0.00015477,2]
[423396025,1780083044000,-500.0,0.00015205,2]
[423396037,1780083044000,-500.0,0.00015207,2]
[423396023,1780083044000,-500.0,0.00015205,2]
[423396017,1780083044000,-614.07,0.00015204,2]
[423395996,1780083044000,-34868.15338618,0.00015121,2]
[423395997,1780083044000,-821.7835373,0.00015122,2]
[423395999,1780083044000,-700.46,0.00015203,2]
[423396001,1780083044000,-536.45,0.00015203,2]
[423396000,1780083044000,-556.45,0.00015203,2]
[423395998,1780083044000,-500.0,0.00015203,2]
[423396002,1780083044000,-524.47,0.00015203,2]
[423396004,1780083044000,-1110.6,0.00015203,2]
[423396007,1780083044000,-512.06,0.00015204,2]
[423396006,1780083044000,-500.0,0.00015203,2]
[423396005,1780083044000,-11228.46,0.00015203,2]
[423396013,1780083044000,-500.0,0.00015204,2]
[423396003,1780083044000,-500.0,0.00015203,2]
[423396010,1780083044000,-387.97,0.00015204,2]
[423395994,1780083044000,-151.0,0.00015121,2]
[423396020,1780083044000,-549.73,0.00015204,2]
[423396009,1780083044000,-622.18,0.00015204,2]
[423396011,1780083044000,-500.0,0.00015204,2]
[423396014,1780083044000,-1128.87,0.00015204,2]
[423396008,1780083044000,-500.0,0.00015204,2]
[423396016,1780083044000,-1626.21,0.00015204,2]
[423396026,1780083044000,-630.87,0.00015205,2]
[423396018,1780083044000,-500.0,0.00015204,2]
[423396022,1780083044000,-500.0,0.00015204,2]
[423396012,1780083044000,-500.0,0.00015204,2]
[423396019,1780083044000,-500.0,0.00015204,2]
[423396021,1780083044000,-527.07,0.00015204,2]
[423396015,1780083044000,-500.0,0.00015204,2]
[423396027,1780083044000,-500.0,0.00015205,2]
[423396095,1780083045000,-524.47,0.00015751,2]
[423396107,1780083045000,-1626.21,0.00015752,2]
[423396093,1780083045000,-556.45,0.00015751,2]
[423396105,1780083045000,-1128.87,0.00015752,2]
[423396097,1780083045000,-1110.6,0.00015751,2]
[423396098,1780083045000,-11228.46,0.00015751,2]
[423396086,1780083045000,-217.833046,0.00015481,2]
[423396096,1780083045000,-500.0,0.00015751,2]
[423396091,1780083045000,-500.0,0.00015751,2]
[423396088,1780083045000,-787.1,0.00015481,2]
[423396087,1780083045000,-950.2,0.00015481,2]
[423396082,1780083045000,-813.47,0.00015481,2]
[423396100,1780083045000,-500.0,0.00015752,2]
[423396106,1780083045000,-500.0,0.00015752,2]
[423396102,1780083045000,-280.52,0.00015752,2]
[423396112,1780083045000,-500.0,0.00015752,2]
[423396099,1780083045000,-500.0,0.00015751,2]
[423396104,1780083045000,-500.0,0.00015752,2]
[423396103,1780083045000,-500.0,0.00015752,2]
[423396108,1780083045000,-614.07,0.00015752,2]
[423396110,1780083045000,-549.73,0.00015752,2]
[423396111,1780083045000,-527.07,0.00015752,2]
[423396113,1780083045000,-565.51,0.00015753,2]
[423396114,1780083045000,-651.69,0.00015753,2]
[423396109,1780083045000,-500.0,0.00015752,2]
[423396115,1780083045000,-500.0,0.00015753,2]
[423396120,1780083045000,-301.75381693,0.00015753,2]
[423396117,1780083045000,-500.0,0.00015753,2]
[423396116,1780083045000,-630.87,0.00015753,2]
[423396101,1780083045000,-622.18,0.00015752,2]
[423396090,1780083045000,-151.05,0.000157,2]
[423396059,1780083045000,-500.0,0.00015478,2]
[423396092,1780083045000,-700.46,0.00015751,2]
[423396118,1780083045000,-500.0,0.00015753,2]
[423396058,1780083045000,-500.0,0.00015478,2]
[423396057,1780083045000,-500.0,0.00015478,2]
[423396060,1780083045000,-1128.87,0.00015478,2]
[423396064,1780083045000,-493.36589682,0.00015478,2]
[423396065,1780083045000,-500.0,0.00015478,2]
[423396066,1780083045000,-549.73,0.00015478,2]
[423396063,1780083045000,-614.07,0.00015478,2]
[423396062,1780083045000,-1626.21,0.00015478,2]
[423396056,1780083045000,-622.18,0.00015478,2]
[423396061,1780083045000,-500.0,0.00015478,2]
[423396068,1780083045000,-500.0,0.00015478,2]
[423396067,1780083045000,-527.07,0.00015478,2]
[423396078,1780083045000,-500.0,0.00015479,2]
[423396094,1780083045000,-536.45,0.00015751,2]
[423396079,1780083045000,-646.62,0.00015479,2]
[423396069,1780083045000,-500.0,0.00015479,2]
[423396074,1780083045000,-151.0,0.00015479,2]
[423396071,1780083045000,-651.69,0.00015479,2]
[423396072,1780083045000,-500.0,0.00015479,2]
[423396075,1780083045000,-630.87,0.00015479,2]
[423396073,1780083045000,-151.0,0.00015479,2]
[423396070,1780083045000,-151.0,0.00015479,2]
[423396076,1780083045000,-298.01,0.00015479,2]
[423396077,1780083045000,-500.0,0.00015479,2]
[423396081,1780083045000,-500.0,0.00015481,2]
[423396084,1780083045000,-500.0,0.00015481,2]
[423396083,1780083045000,-500.0,0.00015481,2]
[423396085,1780083045000,-523.94,0.00015481,2]
[423396089,1780083045000,-239.82836818,0.00015619,5]
[423396080,1780083045000,-595.16,0.00015479,2]
[423396121,1780083045000,-500.0,0.00015755,2]
[423396119,1780083045000,-151.0,0.00015753,2]
[423396167,1780083045000,-500.0,0.00016027,2]
[423396154,1780083045000,-500.0,0.00016026,2]
[423396155,1780083045000,-622.18,0.00016026,2]
[423396156,1780083045000,-442.14,0.00016026,2]
[423396161,1780083045000,-614.07,0.00016026,2]
[423396172,1780083045000,-813.47,0.00016029,2]
[423396173,1780083045000,-500.0,0.00016029,2]
[423396162,1780083045000,-500.0,0.00016026,2]
[423396164,1780083045000,-527.07,0.00016026,2]
[423396160,1780083045000,-1626.21,0.00016026,2]
[423396169,1780083045000,-500.0,0.00016027,2]
[423396170,1780083045000,-500.0,0.00016027,2]
[423396163,1780083045000,-549.73,0.00016026,2]
[423396166,1780083045000,-651.69,0.00016027,2]
[423396168,1780083045000,-630.87,0.00016027,2]
[423396152,1780083045000,-11228.46,0.00016025,2]
[423396165,1780083045000,-500.0,0.00016026,2]
[423396177,1780083045000,-151.0,0.00016068,2]
[423396176,1780083045000,-787.1,0.00016029,2]
[423396180,1780083045000,-151.0,0.00016263,2]
[423396184,1780083045000,-536.45,0.00016299,2]
[423396175,1780083045000,-950.2,0.00016029,2]
[423396179,1780083045000,-2329.80205738,0.00016263,54]
[423396178,1780083045000,-261.432455,0.00016068,2]
[423396187,1780083045000,-1110.6,0.00016299,2]
[423396186,1780083045000,-500.0,0.00016299,2]
[423396185,1780083045000,-524.47,0.00016299,2]
[423396182,1780083045000,-700.46,0.00016299,2]
[423396181,1780083045000,-500.0,0.00016299,2]
[423396122,1780083045000,-813.47,0.00015755,2]
[423396183,1780083045000,-556.45,0.00016299,2]
[423396174,1780083045000,-523.94,0.00016029,2]
[423396153,1780083045000,-500.0,0.00016025,2]
[423396171,1780083045000,-500.0,0.00016029,2]
[423396150,1780083045000,-500.0,0.00016025,2]
[423396136,1780083045000,-2329.80205738,0.00015853,42]
[423396137,1780083045000,-163.0442,0.00015872,2]
[423396134,1780083045000,-1000.0,0.00015846,2]
[423396158,1780083045000,-1128.87,0.00016026,2]
[423396129,1780083045000,-2255.127,0.00015776,2]
[423396133,1780083045000,-1545.44453652,0.0001578,40]
[423396138,1780083045000,-333.082027,0.000159,2]
[423396131,1780083045000,-475.506,0.00015776,2]
[423396126,1780083045000,-950.2,0.00015755,2]
[423396132,1780083045000,-185.0,0.00015776,2]
[423396130,1780083045000,-442.85,0.00015776,2]
[423396123,1780083045000,-221.73544003,0.00015755,2]
[423396125,1780083045000,-523.94,0.00015755,2]
[423396124,1780083045000,-500.0,0.00015755,2]
[423396127,1780083045000,-787.1,0.00015755,2]
[423396139,1780083045000,-186.70099073,0.000159,2]
[423396128,1780083045000,-1835.0,0.00015776,2]
[423396140,1780083045000,-268.463,0.00015926,2]
[423396159,1780083045000,-500.0,0.00016026,2]